[Event "*** Titled Tuesday Blitz"]
[Site "Chess.com"]
[Date "2020.04.14"]
[Round "2"]
[White "JustWatch000"]
[Black "Rap_woyska"]
[Result "1-0"]
[WhiteElo "2622"]
[BlackElo "2305"]
[TimeControl "180+1"]
[EndTime "10:13:59 PDT"]
[Termination "JustWatch000 won by resignation"]

1. Nf3 {[%clk 0:03:00.9]} 1... d5 {[%clk 0:02:57.4]} 2. d4 {[%clk 0:03:00.9]}
2... Nf6 {[%clk 0:02:57.1]} 3. c4 {[%clk 0:03:01.8]} 3... c6 {[%clk 0:02:57]} 4.
Nc3 {[%clk 0:03:02.1]} 4... dxc4 {[%clk 0:02:57]} 5. a4 {[%clk 0:03:01.9]} 5...
Bf5 {[%clk 0:02:56.7]} 6. e3 {[%clk 0:03:02.8]} 6... e6 {[%clk 0:02:56.2]} 7.
Bxc4 {[%clk 0:03:03.3]} 7... Bb4 {[%clk 0:02:56.8]} 8. O-O {[%clk 0:03:03.7]}
8... O-O {[%clk 0:02:56.1]} 9. Qe2 {[%clk 0:03:04.2]} 9... Bg6 {[%clk
0:02:50.7]} 10. Ne5 {[%clk 0:03:02.4]} 10... Nbd7 {[%clk 0:02:43.3]} 11. Nxg6
{[%clk 0:03:00.5]} 11... hxg6 {[%clk 0:02:42.7]} 12. Rd1 {[%clk 0:02:59.8]}
12... a5 {[%clk 0:02:41.5]} 13. e4 {[%clk 0:02:59.3]} 13... e5 {[%clk
0:02:27.7]} 14. dxe5 {[%clk 0:02:56]} 14... Nxe5 {[%clk 0:02:28.6]} 15. Rxd8
{[%clk 0:02:55.2]} 15... Rfxd8 {[%clk 0:02:29.2]} 16. Bf4 {[%clk 0:02:54.4]}
16... Nxc4 {[%clk 0:02:02.3]} 17. Qxc4 {[%clk 0:02:55.3]} 17... Rd7 {[%clk
0:01:38.5]} 18. e5 {[%clk 0:02:38.4]} 18... Nh5 {[%clk 0:01:23.8]} 19. Be3
{[%clk 0:02:32.2]} 19... Re8 {[%clk 0:01:23]} 20. f4 {[%clk 0:02:23.3]} 20...
Re6 {[%clk 0:01:06.9]} 21. Ne4 {[%clk 0:02:19.9]} 21... Rd5 {[%clk 0:00:58.7]}
22. g4 {[%clk 0:02:18.4]} 1-0

[Event "*** Titled Tuesday Blitz"]
[Site "Chess.com"]
[Date "2020.04.14"]
[Round "2"]
[White "Apocalyps999"]
[Black "Noukii"]
[Result "0-1"]
[WhiteElo "2481"]
[BlackElo "2713"]
[TimeControl "180+1"]
[EndTime "10:14:00 PDT"]
[Termination "Noukii won by resignation"]

1. e4 {[%clk 0:03:00]} 1... Nf6 {[%clk 0:03:00.3]} 2. e5 {[%clk 0:02:59.7]} 2...
Nd5 {[%clk 0:03:00.8]} 3. c4 {[%clk 0:03:00.6]} 3... Nb6 {[%clk 0:03:01]} 4. c5
{[%clk 0:03:01.2]} 4... Nd5 {[%clk 0:03:00.9]} 5. Bc4 {[%clk 0:03:02.1]} 5... e6
{[%clk 0:03:01.2]} 6. Nc3 {[%clk 0:03:00.8]} 6... Nxc3 {[%clk 0:03:01.3]} 7.
dxc3 {[%clk 0:03:01.7]} 7... Nc6 {[%clk 0:03:01.6]} 8. Bf4 {[%clk 0:02:57.1]}
8... Qh4 {[%clk 0:03:01.8]} 9. g3 {[%clk 0:02:53.8]} 9... Qe7 {[%clk 0:03:01.8]}
10. b4 {[%clk 0:02:53.1]} 10... g5 {[%clk 0:03:01.8]} 11. Be3 {[%clk 0:02:44.8]}
11... Nxe5 {[%clk 0:03:01.8]} 12. Qd4 {[%clk 0:02:44.8]} 12... Bg7 {[%clk
0:02:41.1]} 13. Kf1 {[%clk 0:02:31.4]} 13... O-O {[%clk 0:02:38.5]} 14. Be2
{[%clk 0:02:30.4]} 14... b6 {[%clk 0:02:34.9]} 15. Qd2 {[%clk 0:02:30]} 15...
Bb7 {[%clk 0:02:29.6]} 16. f3 {[%clk 0:02:29.9]} 16... g4 {[%clk 0:02:25.3]} 17.
Kf2 {[%clk 0:01:52.9]} 17... gxf3 {[%clk 0:02:21]} 18. Nxf3 {[%clk 0:01:52.6]}
18... Qf6 {[%clk 0:02:09.4]} 19. Bf4 {[%clk 0:01:49.2]} 19... Nxf3 {[%clk
0:02:07.9]} 20. Bxf3 {[%clk 0:01:49]} 20... Bxf3 {[%clk 0:02:07.8]} 21. Kxf3
{[%clk 0:01:38.5]} 21... e5 {[%clk 0:02:02.5]} 22. Rhg1 {[%clk 0:01:38.2]} 22...
exf4 {[%clk 0:01:59.8]} 23. gxf4 {[%clk 0:01:38]} 23... Kh8 {[%clk 0:01:59.8]}
0-1

[Event "*** Titled Tuesday Blitz"]
[Site "Chess.com"]
[Date "2020.04.14"]
[Round "2"]
[White "guillembaches"]
[Black "RD4ever"]
[Result "0-1"]
[WhiteElo "2452"]
[BlackElo "2860"]
[TimeControl "180+1"]
[EndTime "10:14:00 PDT"]
[Termination "RD4ever won by resignation"]

1. e4 {[%clk 0:03:00.9]} 1... e6 {[%clk 0:02:57.4]} 2. Nf3 {[%clk 0:03:00.6]}
2... d5 {[%clk 0:02:58.3]} 3. exd5 {[%clk 0:03:01.5]} 3... exd5 {[%clk
0:02:58.7]} 4. d4 {[%clk 0:03:02]} 4... Nc6 {[%clk 0:02:59.1]} 5. Bb5 {[%clk
0:03:01.8]} 5... Bd6 {[%clk 0:02:59.5]} 6. c4 {[%clk 0:03:02]} 6... dxc4 {[%clk
0:03:00]} 7. d5 {[%clk 0:03:02.9]} 7... a6 {[%clk 0:03:00]} 8. Ba4 {[%clk
0:03:03]} 8... b5 {[%clk 0:03:00.6]} 9. dxc6 {[%clk 0:03:03.2]} 9... bxa4 {[%clk
0:03:01.2]} 10. O-O {[%clk 0:03:03.3]} 10... Ne7 {[%clk 0:03:01.9]} 11. Qxa4
{[%clk 0:03:03.4]} 11... O-O {[%clk 0:03:02.5]} 12. Nbd2 {[%clk 0:03:03.5]}
12... Rb8 {[%clk 0:02:29.2]} 13. a3 {[%clk 0:02:58.5]} 13... Be6 {[%clk
0:02:22.6]} 14. Nxc4 {[%clk 0:02:56.8]} 14... Bd5 {[%clk 0:02:21.1]} 15. Nd4
{[%clk 0:02:56.3]} 15... Bc5 {[%clk 0:02:17.9]} 16. Be3 {[%clk 0:02:15.8]} 16...
Bxd4 {[%clk 0:02:17.4]} 17. Bxd4 {[%clk 0:02:15.9]} 17... Bxg2 {[%clk
0:02:17.6]} 18. Kxg2 {[%clk 0:01:46.9]} 18... Qxd4 {[%clk 0:02:16.7]} 19. Rad1
{[%clk 0:01:34.4]} 19... Qg4+ {[%clk 0:02:09.8]} 20. Kh1 {[%clk 0:01:34.4]}
20... Qf3+ {[%clk 0:02:08.9]} 21. Kg1 {[%clk 0:01:34.6]} 21... Rb5 {[%clk
0:02:04.5]} 22. h4 {[%clk 0:01:11.8]} 22... Qg4+ {[%clk 0:02:03.7]} 0-1

[Event "*** Titled Tuesday Blitz"]
[Site "Chess.com"]
[Date "2020.04.14"]
[Round "2"]
[White "AlessiaSanteramo"]
[Black "MosheFriedland"]
[Result "0-1"]
[WhiteElo "2051"]
[BlackElo "2421"]
[TimeControl "180+1"]
[EndTime "10:14:03 PDT"]
[Termination "MosheFriedland won by resignation"]

1. e4 {[%clk 0:03:00.9]} 1... c5 {[%clk 0:02:59.5]} 2. Nf3 {[%clk 0:02:58.1]}
2... d6 {[%clk 0:02:58.8]} 3. Bb5+ {[%clk 0:02:57.2]} 3... Bd7 {[%clk
0:02:58.5]} 4. Bxd7+ {[%clk 0:02:55.1]} 4... Nxd7 {[%clk 0:02:59.4]} 5. c4
{[%clk 0:02:54.7]} 5... Ngf6 {[%clk 0:02:59.3]} 6. Nc3 {[%clk 0:02:55.2]} 6...
g6 {[%clk 0:02:58.4]} 7. d4 {[%clk 0:02:53]} 7... cxd4 {[%clk 0:02:59.3]} 8.
Nxd4 {[%clk 0:02:53.4]} 8... Rc8 {[%clk 0:02:59]} 9. b3 {[%clk 0:02:46.1]} 9...
a6 {[%clk 0:02:57.1]} 10. Bb2 {[%clk 0:02:40.4]} 10... Bg7 {[%clk 0:02:56.5]}
11. O-O {[%clk 0:02:39.7]} 11... O-O {[%clk 0:02:56.2]} 12. f3 {[%clk
0:02:39.5]} 12... e6 {[%clk 0:02:51.2]} 13. Kh1 {[%clk 0:02:37.8]} 13... Re8
{[%clk 0:02:40.4]} 14. Qd2 {[%clk 0:02:25.2]} 14... Nh5 {[%clk 0:02:27.8]} 15.
Qf2 {[%clk 0:01:43.5]} 15... Nf4 {[%clk 0:02:22.5]} 16. Nce2 {[%clk 0:01:38.5]}
16... Nd3 {[%clk 0:02:21.2]} 17. Qg3 {[%clk 0:01:05.4]} 17... Nxb2 {[%clk
0:02:18.3]} 18. Qxd6 {[%clk 0:01:04.2]} 18... Nc5 {[%clk 0:02:07.2]} 19. Qxd8
{[%clk 0:00:51.8]} 19... Rexd8 {[%clk 0:02:08.1]} 0-1

[Event "*** Titled Tuesday Blitz"]
[Site "Chess.com"]
[Date "2020.04.14"]
[Round "2"]
[White "exoticprincess"]
[Black "tandaleo"]
[Result "1-0"]
[WhiteElo "2770"]
[BlackElo "2338"]
[TimeControl "180+1"]
[EndTime "10:14:08 PDT"]
[Termination "exoticprincess won by resignation"]

1. d4 {[%clk 0:03:00.9]} 1... d5 {[%clk 0:03:00.3]} 2. c4 {[%clk 0:03:00.3]}
2... e6 {[%clk 0:03:00.2]} 3. Nc3 {[%clk 0:03:00.5]} 3... c6 {[%clk 0:03:00.6]}
4. cxd5 {[%clk 0:02:58.3]} 4... exd5 {[%clk 0:03:00.5]} 5. Bf4 {[%clk 0:02:59]}
5... Bd6 {[%clk 0:03:00.3]} 6. g3 {[%clk 0:02:59.1]} 6... Nf6 {[%clk 0:02:53.7]}
7. e3 {[%clk 0:02:59.2]} 7... O-O {[%clk 0:02:53.7]} 8. Bd3 {[%clk 0:02:59.3]}
8... Re8 {[%clk 0:02:41.2]} 9. Qc2 {[%clk 0:02:58.9]} 9... Bxf4 {[%clk
0:02:40.7]} 10. gxf4 {[%clk 0:02:58.7]} 10... Bg4 {[%clk 0:02:39]} 11. h3 {[%clk
0:02:56.3]} 11... Bh5 {[%clk 0:02:37.9]} 12. Nge2 {[%clk 0:02:57]} 12... Bg6
{[%clk 0:02:36.9]} 13. f5 {[%clk 0:02:55.7]} 13... Bh5 {[%clk 0:02:36.8]} 14.
Rg1 {[%clk 0:02:51.3]} 14... Nbd7 {[%clk 0:02:35.8]} 15. O-O-O {[%clk
0:02:50.8]} 15... Bf3 {[%clk 0:02:28.3]} 16. Rg3 {[%clk 0:02:42.4]} 16... Be4
{[%clk 0:02:27.3]} 17. Rdg1 {[%clk 0:02:41]} 17... g6 {[%clk 0:02:20.7]} 18.
fxg6 {[%clk 0:02:40.7]} 18... hxg6 {[%clk 0:02:19.6]} 19. Nf4 {[%clk 0:02:40.8]}
19... Nf8 {[%clk 0:02:13.5]} 20. h4 {[%clk 0:02:37.5]} 20... Bxd3 {[%clk
0:01:11.3]} 21. Qxd3 {[%clk 0:02:38.4]} 21... N6h7 {[%clk 0:01:11.2]} 22. Nxg6
{[%clk 0:02:31.1]} 22... fxg6 {[%clk 0:00:54.4]} 23. Rxg6+ {[%clk 0:02:30]}
23... Kf7 {[%clk 0:00:54.7]} 24. Qf5+ {[%clk 0:02:19.2]} 1-0

[Event "*** Titled Tuesday Blitz"]
[Site "Chess.com"]
[Date "2020.04.14"]
[Round "2"]
[White "FearNoEvil12"]
[Black "Oligan22"]
[Result "0-1"]
[WhiteElo "2049"]
[BlackElo "2383"]
[TimeControl "180+1"]
[EndTime "10:14:08 PDT"]
[Termination "Oligan22 won by resignation"]

1. e4 {[%clk 0:02:56.4]} 1... c6 {[%clk 0:03:00.3]} 2. d4 {[%clk 0:02:55]} 2...
d5 {[%clk 0:03:00.5]} 3. Nc3 {[%clk 0:02:55.2]} 3... dxe4 {[%clk 0:03:00.2]} 4.
Nxe4 {[%clk 0:02:55]} 4... Nf6 {[%clk 0:03:01.1]} 5. Ng3 {[%clk 0:02:54.6]} 5...
h5 {[%clk 0:02:57.1]} 6. Bc4 {[%clk 0:02:52.7]} 6... h4 {[%clk 0:02:48.2]} 7.
N3e2 {[%clk 0:02:51.4]} 7... b5 {[%clk 0:02:42.7]} 8. Bb3 {[%clk 0:02:49.1]}
8... e5 {[%clk 0:02:26.3]} 9. c3 {[%clk 0:02:47.1]} 9... Bg4 {[%clk 0:02:21.5]}
10. h3 {[%clk 0:02:44.3]} 10... Bh5 {[%clk 0:02:18.9]} 11. Be3 {[%clk
0:02:39.7]} 11... Nbd7 {[%clk 0:02:14.8]} 12. Qc2 {[%clk 0:02:37.9]} 12... Bg6
{[%clk 0:02:13.4]} 13. Qd1 {[%clk 0:02:31.9]} 13... Bd6 {[%clk 0:02:09.9]} 14.
Nf3 {[%clk 0:02:30.3]} 14... a5 {[%clk 0:02:07.7]} 15. Bc2 {[%clk 0:02:26.7]}
15... e4 {[%clk 0:02:01.7]} 16. Nd2 {[%clk 0:02:14.3]} 16... Qe7 {[%clk
0:02:01.9]} 17. Nf4 {[%clk 0:02:12.3]} 17... Bxf4 {[%clk 0:01:56.7]} 18. Bxf4
{[%clk 0:02:11.4]} 18... Nd5 {[%clk 0:01:57.4]} 19. Be3 {[%clk 0:02:00.1]} 19...
f5 {[%clk 0:01:56.1]} 20. g3 {[%clk 0:01:56.1]} 20... hxg3 {[%clk 0:01:53.5]}
21. Qe2 {[%clk 0:01:48.9]} 21... f4 {[%clk 0:01:52.8]} 22. Qg4 {[%clk 0:01:38]}
22... Bh5 {[%clk 0:01:39.4]} 0-1

[Event "*** Titled Tuesday Blitz"]
[Site "Chess.com"]
[Date "2020.04.14"]
[Round "2"]
[White "Gareth-Bale11"]
[Black "esskeettit"]
[Result "1-0"]
[WhiteElo "2807"]
[BlackElo "2346"]
[TimeControl "180+1"]
[EndTime "10:14:15 PDT"]
[Termination "Gareth-Bale11 won by resignation"]

1. d4 {[%clk 0:03:00.9]} 1... Nf6 {[%clk 0:02:59.5]} 2. Nf3 {[%clk 0:02:59.8]}
2... e6 {[%clk 0:02:59]} 3. c4 {[%clk 0:02:59.4]} 3... d5 {[%clk 0:02:57]} 4.
Nc3 {[%clk 0:02:59.3]} 4... Bb4 {[%clk 0:02:53.1]} 5. Qa4+ {[%clk 0:02:57.3]}
5... Nc6 {[%clk 0:02:48.9]} 6. Bg5 {[%clk 0:02:57.7]} 6... h6 {[%clk 0:02:43.6]}
7. Bxf6 {[%clk 0:02:55.3]} 7... Qxf6 {[%clk 0:02:44.5]} 8. e3 {[%clk 0:02:54.8]}
8... Bd7 {[%clk 0:02:42]} 9. Qc2 {[%clk 0:02:47.1]} 9... O-O {[%clk 0:02:37.1]}
10. Rc1 {[%clk 0:02:45.6]} 10... Rfe8 {[%clk 0:02:31.3]} 11. a3 {[%clk
0:02:41.8]} 11... Bxc3+ {[%clk 0:02:15.4]} 12. Qxc3 {[%clk 0:02:41.9]} 12...
dxc4 {[%clk 0:02:14.4]} 13. Bxc4 {[%clk 0:02:41.4]} 13... e5 {[%clk 0:02:11.8]}
14. d5 {[%clk 0:02:41]} 14... Nd8 {[%clk 0:01:57.4]} 15. O-O {[%clk 0:02:40.3]}
15... c6 {[%clk 0:01:55.1]} 16. Rfd1 {[%clk 0:02:33.3]} 16... cxd5 {[%clk
0:01:54.9]} 17. Bxd5 {[%clk 0:02:31.6]} 17... Bc6 {[%clk 0:01:53.2]} 18. Qb3
{[%clk 0:02:22.8]} 18... Rb8 {[%clk 0:01:38.7]} 19. Bxc6 {[%clk 0:02:10.5]}
19... Nxc6 {[%clk 0:01:39.6]} 20. Rd7 {[%clk 0:02:10]} 20... e4 {[%clk
0:01:32.1]} 21. Nd2 {[%clk 0:02:00]} 21... b6 {[%clk 0:01:09.4]} 22. Rxc6 {[%clk
0:01:53.6]} 1-0

[Event "*** Titled Tuesday Blitz"]
[Site "Chess.com"]
[Date "2020.04.14"]
[Round "2"]
[White "Jojo_1608"]
[Black "Arencibia"]
[Result "0-1"]
[WhiteElo "2234"]
[BlackElo "2486"]
[TimeControl "180+1"]
[EndTime "10:14:15 PDT"]
[Termination "Arencibia won by resignation"]

1. d4 {[%clk 0:03:00.9]} 1... Nf6 {[%clk 0:02:55.3]} 2. c4 {[%clk 0:03:00.7]}
2... e6 {[%clk 0:02:49.4]} 3. Nc3 {[%clk 0:03:00.3]} 3... Bb4 {[%clk 0:02:48.1]}
4. e3 {[%clk 0:03:00.5]} 4... c5 {[%clk 0:02:44.9]} 5. Ne2 {[%clk 0:02:59.9]}
5... cxd4 {[%clk 0:02:41.6]} 6. exd4 {[%clk 0:02:55.1]} 6... O-O {[%clk
0:02:42.2]} 7. a3 {[%clk 0:02:54.8]} 7... Be7 {[%clk 0:02:42.1]} 8. Bf4 {[%clk
0:02:49.5]} 8... d5 {[%clk 0:02:41]} 9. c5 {[%clk 0:02:49.2]} 9... b6 {[%clk
0:02:38.9]} 10. b4 {[%clk 0:02:48.4]} 10... a5 {[%clk 0:02:38.9]} 11. Rb1 {[%clk
0:02:47.4]} 11... axb4 {[%clk 0:02:38.5]} 12. axb4 {[%clk 0:02:47.2]} 12... bxc5
{[%clk 0:02:38.3]} 13. bxc5 {[%clk 0:02:44.9]} 13... Nc6 {[%clk 0:02:36.1]} 14.
Nb5 {[%clk 0:02:44.5]} 14... Ne4 {[%clk 0:02:31.6]} 15. Bc7 {[%clk 0:02:27.4]}
15... Qd7 {[%clk 0:02:28.6]} 16. Ng3 {[%clk 0:02:25.9]} 16... Ba6 {[%clk
0:02:14.7]} 17. Bb6 {[%clk 0:02:22.1]} 17... Bxb5 {[%clk 0:02:06]} 18. Bxb5
{[%clk 0:02:00.6]} 18... Nc3 {[%clk 0:02:03.8]} 19. Qd3 {[%clk 0:01:50.6]} 19...
Nxb1 {[%clk 0:01:59.9]} 20. Qxb1 {[%clk 0:01:50.3]} 20... Qb7 {[%clk 0:01:58.1]}
21. O-O {[%clk 0:01:48.3]} 21... Nxd4 {[%clk 0:01:56.8]} 22. Rd1 {[%clk
0:01:41.2]} 22... Nxb5 {[%clk 0:01:55.3]} 23. Qxb5 {[%clk 0:01:40.4]} 23... Rfc8
{[%clk 0:01:54.3]} 24. Nh5 {[%clk 0:01:39.7]} 24... Bxc5 {[%clk 0:01:45.9]} 25.
Qb2 {[%clk 0:01:32.1]} 25... d4 {[%clk 0:01:43.8]} 0-1

[Event "*** Titled Tuesday Blitz"]
[Site "Chess.com"]
[Date "2020.04.14"]
[Round "2"]
[White "iLuusions"]
[Black "CakeinSpace2002"]
[Result "1-0"]
[WhiteElo "2573"]
[BlackElo "2201"]
[TimeControl "180+1"]
[EndTime "10:14:17 PDT"]
[Termination "iLuusions won by resignation"]

1. d4 {[%clk 0:03:00.9]} 1... Nf6 {[%clk 0:02:57.2]} 2. c4 {[%clk 0:02:58.7]}
2... g6 {[%clk 0:02:46.2]} 3. Nc3 {[%clk 0:02:57]} 3... Bg7 {[%clk 0:02:47.1]}
4. e4 {[%clk 0:02:56.9]} 4... d6 {[%clk 0:01:59.2]} 5. h3 {[%clk 0:02:55.3]}
5... O-O {[%clk 0:01:57.8]} 6. Bg5 {[%clk 0:02:54.6]} 6... c5 {[%clk 0:01:57.2]}
7. d5 {[%clk 0:02:53.8]} 7... b5 {[%clk 0:01:56.6]} 8. cxb5 {[%clk 0:02:53.1]}
8... a6 {[%clk 0:01:56.4]} 9. a4 {[%clk 0:02:52.9]} 9... axb5 {[%clk 0:01:54.6]}
10. Bxb5 {[%clk 0:02:53.8]} 10... Ba6 {[%clk 0:01:55]} 11. Qc2 {[%clk
0:02:43.1]} 11... Nxe4 {[%clk 0:01:37.5]} 12. Qxe4 {[%clk 0:02:30.3]} 12... Bxb5
{[%clk 0:01:35.7]} 13. Nxb5 {[%clk 0:02:27.7]} 13... Qa5+ {[%clk 0:01:27.5]} 14.
Ke2 {[%clk 0:02:23.6]} 14... Nd7 {[%clk 0:01:20.5]} 15. Nf3 {[%clk 0:02:20.4]}
15... Nf6 {[%clk 0:01:19.7]} 16. Qc4 {[%clk 0:02:05.9]} 16... e6 {[%clk
0:01:16.2]} 17. dxe6 {[%clk 0:02:05.4]} 17... Rfe8 {[%clk 0:01:15.3]} 18. Rhe1
{[%clk 0:02:02.8]} 18... Rxe6+ {[%clk 0:01:15.2]} 19. Kf1 {[%clk 0:02:03.3]}
19... Rae8 {[%clk 0:01:13.2]} 20. Bd2 {[%clk 0:02:02.3]} 20... Qb6 {[%clk
0:01:08.1]} 21. Rxe6 {[%clk 0:02:00.4]} 21... fxe6 {[%clk 0:01:07]} 22. a5
{[%clk 0:02:00.9]} 22... Qc6 {[%clk 0:01:05.4]} 23. a6 {[%clk 0:01:52.6]} 23...
Qd5 {[%clk 0:01:04.9]} 24. Qxd5 {[%clk 0:01:52.6]} 1-0

[Event "*** Titled Tuesday Blitz"]
[Site "Chess.com"]
[Date "2020.04.14"]
[Round "2"]
[White "Schandenfreude"]
[Black "Anton_Demchenko"]
[Result "0-1"]
[WhiteElo "2496"]
[BlackElo "2935"]
[TimeControl "180+1"]
[EndTime "10:14:20 PDT"]
[Termination "Anton_Demchenko won by resignation"]

1. Nf3 {[%clk 0:03:00.9]} 1... Nf6 {[%clk 0:02:59.7]} 2. g3 {[%clk 0:03:00.2]}
2... g6 {[%clk 0:03:00.2]} 3. b3 {[%clk 0:02:59.2]} 3... Bg7 {[%clk 0:03:01.1]}
4. Bb2 {[%clk 0:02:58.9]} 4... O-O {[%clk 0:03:02]} 5. Bg2 {[%clk 0:02:57.3]}
5... d6 {[%clk 0:03:02.5]} 6. d4 {[%clk 0:02:57.1]} 6... b5 {[%clk 0:03:02.5]}
7. Ne5 {[%clk 0:02:43.4]} 7... dxe5 {[%clk 0:03:02.4]} 8. Bxa8 {[%clk
0:02:37.4]} 8... c6 {[%clk 0:03:02.7]} 9. dxe5 {[%clk 0:02:18.4]} 9... Nd5
{[%clk 0:03:02.7]} 10. c4 {[%clk 0:02:03.7]} 10... bxc4 {[%clk 0:02:59.3]} 11.
bxc4 {[%clk 0:01:40.4]} 11... Nb6 {[%clk 0:02:59.3]} 12. O-O {[%clk 0:01:34.4]}
12... Nxa8 {[%clk 0:02:55.7]} 13. Nd2 {[%clk 0:01:23.8]} 13... Bh3 {[%clk
0:02:53.5]} 14. Re1 {[%clk 0:01:23.1]} 14... Nb6 {[%clk 0:02:52.3]} 15. Rc1
{[%clk 0:01:09.2]} 15... Qc7 {[%clk 0:02:34]} 16. f4 {[%clk 0:01:04.9]} 16...
Rd8 {[%clk 0:02:22.9]} 17. Qc2 {[%clk 0:01:04.5]} 17... c5 {[%clk 0:02:22.4]}
18. Nf3 {[%clk 0:01:02.1]} 18... Nc6 {[%clk 0:02:19.8]} 19. Rcd1 {[%clk
0:01:01.5]} 19... Rb8 {[%clk 0:02:17.3]} 20. Bc3 {[%clk 0:00:59.8]} 20... Nxc4
{[%clk 0:02:10.2]} 21. Qe4 {[%clk 0:00:53.3]} 21... Nb6 {[%clk 0:02:04.2]} 22.
Rb1 {[%clk 0:00:51.4]} 22... Bf5 {[%clk 0:02:02.5]} 0-1

[Event "*** Titled Tuesday Blitz"]
[Site "Chess.com"]
[Date "2020.04.14"]
[Round "2"]
[White "827883"]
[Black "FROGGY64"]
[Result "0-1"]
[WhiteElo "2019"]
[BlackElo "2381"]
[TimeControl "180+1"]
[EndTime "10:14:26 PDT"]
[Termination "FROGGY64 won by resignation"]

1. e4 {[%clk 0:03:00.9]} 1... e6 {[%clk 0:02:59.6]} 2. d4 {[%clk 0:03:01]} 2...
d5 {[%clk 0:02:59.6]} 3. exd5 {[%clk 0:03:01.9]} 3... exd5 {[%clk 0:02:59.5]} 4.
Nf3 {[%clk 0:03:02.2]} 4... Nc6 {[%clk 0:02:59.2]} 5. Bb5 {[%clk 0:03:02.3]}
5... Bd6 {[%clk 0:02:58.9]} 6. c4 {[%clk 0:03:02.6]} 6... dxc4 {[%clk
0:02:58.2]} 7. d5 {[%clk 0:02:59.6]} 7... a6 {[%clk 0:02:51.3]} 8. Ba4 {[%clk
0:03:00.1]} 8... b5 {[%clk 0:02:51.2]} 9. dxc6 {[%clk 0:03:00.7]} 9... bxa4
{[%clk 0:02:51.2]} 10. O-O {[%clk 0:03:01.2]} 10... Ne7 {[%clk 0:02:50.6]} 11.
Qxa4 {[%clk 0:02:59.9]} 11... Be6 {[%clk 0:02:50.4]} 12. Nc3 {[%clk 0:02:51.8]}
12... O-O {[%clk 0:02:49.9]} 13. Bg5 {[%clk 0:02:42.7]} 13... h6 {[%clk
0:02:49]} 14. Bh4 {[%clk 0:02:42.3]} 14... Qb8 {[%clk 0:02:47]} 15. Rad1 {[%clk
0:02:06.8]} 15... Nf5 {[%clk 0:02:42.7]} 16. Qc2 {[%clk 0:01:59]} 16... Qb6
{[%clk 0:02:36.4]} 17. Ne4 {[%clk 0:01:54.9]} 17... Nxh4 {[%clk 0:02:33.4]} 18.
Nxh4 {[%clk 0:01:55.2]} 18... Qxc6 {[%clk 0:02:33.3]} 19. Nxd6 {[%clk
0:01:51.3]} 19... cxd6 {[%clk 0:02:33]} 20. Nf5 {[%clk 0:01:51.8]} 20... Bxf5
{[%clk 0:02:29.7]} 21. Qxf5 {[%clk 0:01:52.7]} 21... Rfd8 {[%clk 0:02:28.5]} 22.
Rd5 {[%clk 0:01:52.4]} 22... Rab8 {[%clk 0:02:26.8]} 23. Rd2 {[%clk 0:01:47.2]}
23... d5 {[%clk 0:02:25.8]} 24. Rfd1 {[%clk 0:01:47.6]} 24... Rb5 {[%clk
0:02:24.8]} 25. h3 {[%clk 0:01:24.9]} 25... d4 {[%clk 0:02:22.7]} 26. Rxd4
{[%clk 0:01:24.1]} 26... Rxf5 {[%clk 0:02:21.4]} 27. Rxd8+ {[%clk 0:01:22.1]}
27... Kh7 {[%clk 0:02:21.3]} 28. R8d4 {[%clk 0:01:13.7]} 28... Rg5 {[%clk
0:02:16.7]} 29. g3 {[%clk 0:01:13.8]} 29... c3 {[%clk 0:02:16.3]} 30. bxc3
{[%clk 0:01:12.8]} 30... Qxc3 {[%clk 0:02:16.3]} 31. Kg2 {[%clk 0:01:12.7]}
31... h5 {[%clk 0:02:16.2]} 32. h4 {[%clk 0:01:12.4]} 32... Rf5 {[%clk
0:02:14.6]} 33. R1d2 {[%clk 0:01:12.2]} 33... Qf3+ {[%clk 0:02:14]} 34. Kg1
{[%clk 0:01:12.6]} 34... Rc5 {[%clk 0:02:13.3]} 0-1

[Event "*** Titled Tuesday Blitz"]
[Site "Chess.com"]
[Date "2020.04.14"]
[Round "2"]
[White "ridnani2021"]
[Black "marianokar"]
[Result "0-1"]
[WhiteElo "1715"]
[BlackElo "2361"]
[TimeControl "180+1"]
[EndTime "10:14:28 PDT"]
[Termination "marianokar won by resignation"]

1. Nf3 {[%clk 0:03:00.9]} 1... c5 {[%clk 0:02:59.5]} 2. g3 {[%clk 0:03:01.5]}
2... b6 {[%clk 0:02:59]} 3. Bg2 {[%clk 0:03:02]} 3... Bb7 {[%clk 0:02:59.6]} 4.
O-O {[%clk 0:03:00.8]} 4... g6 {[%clk 0:03:00.2]} 5. c4 {[%clk 0:02:59.6]} 5...
Bg7 {[%clk 0:03:00.5]} 6. Nc3 {[%clk 0:03:00.1]} 6... d6 {[%clk 0:02:59.9]} 7.
d4 {[%clk 0:03:00.4]} 7... cxd4 {[%clk 0:03:00.1]} 8. Nxd4 {[%clk 0:02:59.7]}
8... Bxg2 {[%clk 0:02:59.4]} 9. Kxg2 {[%clk 0:03:00.2]} 9... Qc8 {[%clk
0:02:59.9]} 10. b3 {[%clk 0:02:59]} 10... Qb7+ {[%clk 0:02:58.9]} 11. Kg1 {[%clk
0:02:57.6]} 11... Nf6 {[%clk 0:02:49.9]} 12. h3 {[%clk 0:02:54.5]} 12... O-O
{[%clk 0:02:49.7]} 13. Bb2 {[%clk 0:02:54.5]} 13... Nbd7 {[%clk 0:02:50]} 14.
Qc2 {[%clk 0:02:50.6]} 14... Rac8 {[%clk 0:02:50.2]} 15. Rad1 {[%clk 0:02:49.9]}
15... a6 {[%clk 0:02:49.1]} 16. e4 {[%clk 0:02:50]} 16... b5 {[%clk 0:02:46.9]}
17. cxb5 {[%clk 0:02:48.9]} 17... axb5 {[%clk 0:02:46.6]} 18. Qe2 {[%clk
0:02:48.7]} 18... b4 {[%clk 0:02:45.1]} 19. Nd5 {[%clk 0:02:41.3]} 19... Nxd5
{[%clk 0:02:30.3]} 20. exd5 {[%clk 0:02:40.7]} 20... Nf6 {[%clk 0:02:31.2]} 21.
Nc6 {[%clk 0:02:38.8]} 21... Nxd5 {[%clk 0:02:29.9]} 22. Bxg7 {[%clk 0:02:25.4]}
22... Kxg7 {[%clk 0:02:30.8]} 23. Rxd5 {[%clk 0:02:24.1]} 23... Rxc6 {[%clk
0:02:28.9]} 24. Rd4 {[%clk 0:02:21.5]} 24... Rfc8 {[%clk 0:01:56.6]} 25. Rfd1
{[%clk 0:02:18.6]} 25... Rc2 {[%clk 0:01:54.5]} 26. R1d2 {[%clk 0:02:15.4]}
26... Rc1+ {[%clk 0:01:53.9]} 27. Rd1 {[%clk 0:02:15.2]} 27... R8c2 {[%clk
0:01:28.1]} 28. Qe3 {[%clk 0:02:08.1]} 28... Rxd1+ {[%clk 0:01:21.9]} 29. Rxd1
{[%clk 0:02:07.3]} 29... Rxa2 {[%clk 0:01:21.8]} 30. Rc1 {[%clk 0:02:05.2]}
30... Qa7 {[%clk 0:01:15.3]} 31. Qf3 {[%clk 0:01:59.8]} 31... Ra1 {[%clk
0:01:12.1]} 32. Rb1 {[%clk 0:01:58.4]} 0-1